bitfinex/quotes_BTCUSD_20250314
["timestamp","ask_amount","ask_price","bid_price","bid_amount"]
[1741983957655,0.72256333,84109.0,84108.0,0.0121691]
[1741983957858,0.72256333,84109.0,84108.0,0.0001691]
[1741983958254,0.72256333,84109.0,84108.0,0.0051691]
[1741983958453,0.3003388,84109.0,84108.0,0.2548471]
[1741983958654,0.0003388,84109.0,84108.0,0.2498471]
[1741983958912,0.0003388,84109.0,84108.0,1.8897271]
[1741983959194,0.0003388,84109.0,84108.0,1.8947271]
[1741983959574,0.0003388,84109.0,84108.0,1.8897271]
[1741983959786,0.0003388,84109.0,84108.0,1.8967271]
[1741983960593,0.0003388,84109.0,84108.0,1.8927271]
[1741983960950,0.0003388,84109.0,84108.0,1.8897271]
[1741983961333,0.0003388,84109.0,84108.0,1.96203813]
[1741983961750,0.0003388,84109.0,84108.0,1.95703813]
[1741983962155,0.0003388,84109.0,84108.0,1.96303813]
[1741983962698,0.0003388,84109.0,84108.0,1.95703813]
[1741983963236,0.0003388,84109.0,84108.0,1.95103813]
[1741983963403,0.0003388,84109.0,84108.0,1.95703813]
[1741983963603,0.0003388,84109.0,84108.0,1.95103813]
[1741983964227,0.0003388,84109.0,84108.0,1.95703813]
[1741983964460,8e-07,84109.0,84108.0,1.95703813]
[1741983964877,8e-07,84109.0,84108.0,1.96303813]
[1741983965079,8e-07,84109.0,84108.0,2.45983813]
[1741983965619,8e-07,84109.0,84108.0,2.46837898]
[1741983965763,0.000339,84140.0,84139.0,0.249586]
[1741983965965,0.000339,84140.0,84139.0,0.389386]
[1741983966994,0.000339,84140.0,84139.0,0.395386]
[1741983967395,0.000339,84140.0,84139.0,0.389386]
[1741983967596,0.000339,84140.0,84139.0,0.8099852]
[1741983967799,0.000339,84140.0,84139.0,0.84702075]
[1741983968132,0.000339,84140.0,84139.0,0.8580346]
[1741983968334,0.000339,84140.0,84139.0,0.82099905]
[1741983968874,0.000339,84140.0,84139.0,2.32099905]
[1741983969073,0.000339,84140.0,84139.0,2.3099852]
[1741983969275,0.000339,84140.0,84139.0,2.33376859]
[1741983969501,0.000339,84140.0,84139.0,2.33976859]
[1741983969787,0.000339,84140.0,84139.0,0.83976859]
[1741983970740,0.000339,84140.0,84139.0,0.83940859]
[1741983971977,0.000339,84140.0,84139.0,0.87642048]
[1741983972155,0.000339,84140.0,84139.0,0.83940859]
[1741983973117,0.000339,84140.0,84139.0,0.84828536]
[1741983973549,0.000339,84140.0,84139.0,0.69996859]
[1741983973756,0.000339,84140.0,84139.0,0.83924859]
[1741983974361,0.000339,84140.0,84139.0,0.82732859]
[1741983974574,0.000339,84140.0,84139.0,0.83332859]
[1741983974909,0.000339,84140.0,84139.0,0.83932859]
[1741983976464,0.000339,84140.0,84139.0,0.69996859]
[1741983976643,0.000339,84140.0,84139.0,0.83912859]
[1741983977197,0.000339,84140.0,84139.0,0.83908859]
[1741983981793,0.0003386,84154.0,84148.0,0.249559]
[1741983982009,0.02790598,84150.0,84148.0,0.249559]
[1741983982199,0.0003386,84154.0,84148.0,0.249559]
[1741983982602,0.0003386,84154.0,84148.0,0.6641582]
[1741983983434,0.02824458,84154.0,84148.0,0.6641582]
[1741983983763,0.0003386,84154.0,84148.0,0.6641582]
[1741983983969,0.02824458,84154.0,84148.0,0.6701582]
[1741983984205,0.02824458,84154.0,84148.0,0.6761582]
[1741983984763,0.0003386,84154.0,84148.0,0.6761582]
[1741983985599,0.0003386,84154.0,84148.0,0.8147582]
[1741983987235,0.0011382,84149.0,84148.0,0.8147582]
[1741983987533,8e-07,84154.0,84153.0,0.249545]
[1741983987811,4e-07,84168.0,84167.0,0.249503]
[1741983988017,4e-07,84168.0,84167.0,0.8025822]
[1741983988222,4e-07,84168.0,84167.0,0.81360679]
[1741983988750,4e-07,84168.0,84167.0,2.31360679]
[1741983989180,0.0007394,84189.0,84188.0,0.011878]
[1741983989383,0.0007394,84189.0,84188.0,0.387801]
[1741983989787,0.0007394,84189.0,84188.0,1.887801]
[1741983990577,0.0007394,84189.0,84188.0,2.3024002]
[1741983990578,4e-07,84189.0,84188.0,2.3024002]
[1741983990757,4e-07,84189.0,84188.0,2.3084002]
[1741983990959,0.0818,84210.0,84209.0,0.249379]
[1741983991704,0.00496,84215.0,84212.0,0.249369]
[1741983991910,0.00496,84215.0,84214.0,0.23749]
[1741983992112,0.03286598,84215.0,84214.0,0.23749]
[1741983992511,0.00496,84215.0,84214.0,0.249364]
[1741983992714,0.0052984,84225.0,84224.0,0.249335]
[1741983992912,0.0052984,84225.0,84224.0,0.237462]
[1741983993111,0.03320438,84225.0,84224.0,0.237462]
[1741983993714,0.0052984,84225.0,84224.0,0.237462]
[1741983994114,0.03320438,84225.0,84224.0,0.237462]
[1741983994360,0.0052984,84225.0,84224.0,0.238462]
[1741983994535,0.03320438,84225.0,84224.0,0.238462]
[1741983994919,0.0052984,84225.0,84224.0,0.238462]
[1741983995162,0.0052984,84225.0,84224.0,0.252335]
[1741983995565,0.0052984,84225.0,84224.0,0.250335]
[1741983995811,0.0003384,84225.0,84224.0,0.249335]
[1741983996009,0.02824438,84225.0,84224.0,0.255335]
[1741983996296,0.0003384,84225.0,84224.0,0.260335]
[1741983996419,0.0003384,84225.0,84224.0,0.255335]
[1741983996846,0.02824438,84225.0,84224.0,0.260335]
[1741983997273,0.0003384,84225.0,84224.0,0.255335]
[1741983997473,0.02824438,84225.0,84224.0,0.255335]
[1741983997680,0.02824438,84225.0,84224.0,0.261335]
[1741983997873,0.0003384,84225.0,84224.0,0.261335]
[1741983998099,0.0003384,84225.0,84224.0,0.255335]
[1741983998275,0.0003384,84225.0,84224.0,0.261335]
[1741983998473,0.0002984,84225.0,84224.0,0.261335]
[1741983998648,0.0002984,84225.0,84224.0,1.761335]
[1741983998911,0.04503638,84225.0,84224.0,0.012]
[1741983999117,0.66259538,84225.0,84224.0,0.012]
[1741983999340,0.41326438,84225.0,84224.0,0.012]
[1741984000228,0.41326438,84225.0,84224.0,0.006]
[1741984000544,0.41326438,84225.0,84224.0,0.240462]
[1741984000747,0.41326438,84225.0,84224.0,0.252335]
[1741984001824,0.41326438,84225.0,84224.0,0.256335]
[1741984002034,0.41326438,84225.0,84224.0,0.244462]
[1741984002237,0.02790598,84220.0,84218.0,0.237476]
[1741984002394,0.02790598,84219.0,84218.0,0.237476]
[1741984003454,0.0853584,84225.0,84222.0,0.237466]
[1741984003635,0.02790598,84223.0,84222.0,0.237466]
[1741984003829,0.0853584,84225.0,84222.0,0.237466]
[1741984004043,0.02790598,84223.0,84220.0,0.237473]
[1741984004482,0.03286598,84219.0,84218.0,0.006]
[1741984004737,0.61354683,84219.0,84218.0,0.006]
[1741984005256,0.61354683,84219.0,84218.0,0.012]
[1741984005461,0.85102283,84219.0,84218.0,0.012]
[1741984005706,0.02790598,84214.0,84213.0,0.237492]
[1741984006568,0.02790598,84216.0,84215.0,0.237485]
[1741984007720,0.02790598,84214.0,84213.0,0.002]
[1741984007892,0.03977998,84214.0,84213.0,0.002]
[1741984008105,0.32790598,84214.0,84213.0,0.002]
[1741984008501,0.33286598,84214.0,84213.0,0.005]
[1741984008905,0.30496,84214.0,84213.0,1.503]
[1741984009081,0.33286598,84214.0,84213.0,1.514874]
[1741984009281,0.33286598,84214.0,84213.0,1.503]
[1741984010360,0.33286598,84214.0,84213.0,1.505]
[1741984012235,0.58222998,84214.0,84213.0,1.505]
[1741984012416,0.58222998,84214.0,84213.0,0.005]
[1741984016871,0.33286598,84214.0,84213.0,0.005]
[1741984018032,0.30496,84214.0,84213.0,0.005]
[1741984018199,0.33286598,84214.0,84213.0,0.005]
[1741984018946,0.34473998,84214.0,84213.0,0.005]
[1741984020553,0.33286598,84214.0,84213.0,0.005]
[1741984020761,0.32790598,84213.0,84212.0,0.237493]
[1741984020890,0.03286598,84213.0,84212.0,0.249367]
[1741984021746,0.03286598,84213.0,84212.0,0.237493]
[1741984022346,0.3,84218.0,84203.0,0.237521]
[1741984022347,0.00496,84204.0,84203.0,0.23752]
[1741984022552,0.03286598,84204.0,84203.0,1.73752]
[1741984023814,0.03286598,84204.0,84203.0,1.74252]
[1741984024664,0.03286598,84204.0,84203.0,1.74752]
[1741984025588,0.03286598,84204.0,84203.0,0.24752]
[1741984026195,0.03286598,84204.0,84203.0,1.74752]
[1741984027434,0.03286598,84204.0,84203.0,1.759396]
[1741984027852,0.03286598,84204.0,84203.0,0.01]
[1741984028054,0.28225898,84204.0,84203.0,0.01]
[1741984028473,0.03286598,84204.0,84203.0,0.01]
[1741984032244,0.67559983,84204.0,84203.0,0.01]
[1741984033689,0.67559983,84204.0,84203.0,0.005]
[1741984033860,0.56396085,84195.0,84181.0,1.5]
[1741984034068,0.81738683,84195.0,84175.0,0.237597]
[1741984034354,0.67982683,84195.0,84184.0,0.011878]
[1741984034555,0.65192085,84195.0,84181.0,0.011879]
[1741984034790,0.81746683,84195.0,84181.0,0.011879]
[1741984034993,0.81746683,84195.0,84184.0,0.237572]
[1741984035408,0.81746683,84195.0,84183.0,0.237575]
[1741984035638,0.81746683,84195.0,84182.0,0.237579]
[1741984035874,0.81746683,84195.0,84184.0,0.237574]
[1741984036084,0.80292598,84195.0,84182.0,0.237579]
[1741984036308,0.80292598,84195.0,84183.0,0.237574]
[1741984036685,0.80292598,84195.0,84177.0,0.237593]
[1741984037328,0.80292598,84195.0,84175.0,0.237599]
[1741984038120,0.81746683,84195.0,84184.0,0.237572]
[1741984038363,0.81746683,84195.0,84180.0,0.237585]
[1741984038721,0.81746683,84195.0,84179.0,0.237588]
[1741984038913,0.81746683,84195.0,84169.0,0.237615]
[1741984039115,0.81746683,84195.0,84173.0,0.237603]
[1741984040133,0.03286598,84158.0,84154.0,0.237657]
[1741984040334,0.02790598,84157.0,84154.0,0.237657]
[1741984040627,0.02790598,84154.0,84152.0,0.34465826]
[1741984040787,0.03286598,84153.0,84152.0,0.10699626]
[1741984041319,0.41226598,84153.0,84152.0,0.10699626]
[1741984041491,0.33286598,84153.0,84152.0,0.10699626]
[1741984041839,0.33286598,84153.0,84152.0,0.35654426]
[1741984041840,0.03286598,84153.0,84152.0,0.35654426]
[1741984042229,0.03286598,84153.0,84152.0,0.10699626]
[1741984042453,0.34474898,84153.0,84152.0,0.11099626]
[1741984042882,0.34474898,84153.0,84152.0,0.10699626]
[1741984043086,0.34474898,84153.0,84152.0,0.11099626]
[1741984043356,0.34474898,84153.0,84152.0,0.10999626]
[1741984043695,0.34474898,84153.0,84152.0,0.006]
[1741984044258,0.0032,84146.0,84140.0,0.237696]
[1741984044462,0.02790598,84142.0,84140.0,0.237696]
[1741984044690,0.00496,84140.0,84129.0,0.149686]
[1741984044865,0.02790598,84134.0,84132.0,0.237719]
[1741984045066,0.02790598,84134.0,84133.0,0.011885]
[1741984046315,0.02790598,84134.0,84133.0,0.017885]
[1741984046795,0.02790598,84134.0,84133.0,0.023885]
[1741984048135,0.00496,84137.0,84136.0,0.011885]
[1741984048382,0.03286598,84137.0,84136.0,0.011885]
[1741984048599,0.03286598,84137.0,84136.0,0.23771]
[1741984048847,0.00496,84142.0,84141.0,0.24958]
[1741984049083,0.0032,84146.0,84145.0,0.327368]
[1741984049569,0.0032,84146.0,84145.0,1.826368]
[1741984049829,0.02790598,84152.0,84151.0,0.249551]
[1741984050035,0.03286598,84158.0,84157.0,0.237651]
[1741984050254,0.03286598,84158.0,84157.0,0.249533]
[1741984050981,0.03286598,84160.0,84159.0,0.249527]
[1741984051204,0.03286598,84160.0,84159.0,0.237645]
[1741984051431,0.02790598,84158.0,84156.0,0.237651]
[1741984051905,0.02790598,84158.0,84157.0,0.239648]
[1741984052641,0.02790598,84158.0,84157.0,0.237648]
[1741984053172,0.02790598,84158.0,84157.0,0.238648]
[1741984053371,0.03286598,84158.0,84157.0,0.238648]
[1741984053618,0.00496,84158.0,84157.0,0.237648]
[1741984053860,0.03286598,84158.0,84157.0,0.239648]
[1741984054330,0.03286598,84158.0,84157.0,0.25153]
[1741984054794,0.02790598,84158.0,84157.0,0.25453]
[1741984055489,0.00496,84159.0,84158.0,0.011882]
[1741984055757,0.03286598,84159.0,84158.0,0.011882]
[1741984056725,0.03286598,84159.0,84158.0,0.013882]
[1741984057526,0.03286598,84159.0,84158.0,0.015882]
[1741984057841,0.02790598,84166.0,84161.0,0.24952]
[1741984058069,0.03286598,84175.0,84174.0,0.249483]
[1741984058516,0.00496,84175.0,84174.0,0.249483]
[1741984058750,0.03286598,84175.0,84174.0,0.237603]
[1741984059422,0.00496,84175.0,84174.0,0.238603]
[1741984059668,0.00492,84175.0,84174.0,0.238603]
[1741984059915,0.03282598,84175.0,84174.0,0.237603]
[1741984060133,0.03282598,84175.0,84174.0,0.24929226]
[1741984060782,0.03282598,84175.0,84174.0,0.23741226]
[1741984061887,0.04470598,84175.0,84174.0,0.001]
[1741984062095,0.03282598,84175.0,84174.0,0.003]
[1741984062342,0.03282598,84175.0,84174.0,0.004]
[1741984062343,0.28230598,84175.0,84174.0,0.004]
[1741984062991,0.237606,84173.0,84167.0,0.237622]
[1741984063219,0.00492,84166.0,84158.0,0.011882]
[1741984063456,0.00492,84158.0,84157.0,0.375048]
[1741984063668,0.03282598,84158.0,84157.0,0.1374]
[1741984063907,0.02790598,84156.0,84155.0,0.237655]
[1741984064114,0.03282598,84154.0,84153.0,0.237659]
[1741984064450,0.03282598,84154.0,84153.0,0.249542]
[1741984064653,0.02790598,84154.0,84153.0,0.249542]
[1741984065054,0.02790598,84157.0,84156.0,0.011882]
[1741984065271,0.02790598,84157.0,84156.0,0.249535]
[1741984066079,0.02790598,84158.0,84157.0,0.011882]
[1741984067703,0.03282598,84159.0,84158.0,0.24953]
[1741984068110,0.02790598,84164.0,84159.0,0.011882]
[1741984068307,0.02790598,84166.0,84165.0,0.249509]
[1741984068544,0.03282598,84167.0,84166.0,0.011881]
[1741984070081,0.03282598,84167.0,84166.0,0.015881]
[1741984070280,0.00492,84167.0,84166.0,0.015881]
[1741984070430,0.03282598,84167.0,84166.0,0.015881]
[1741984070806,0.03282598,84167.0,84166.0,0.006]
[1741984071011,0.03282598,84167.0,84166.0,0.017881]
[1741984071140,0.03282598,84167.0,84166.0,0.015881]
[1741984071563,0.00492,84167.0,84166.0,0.015881]
[1741984072173,0.00492,84167.0,84166.0,0.017881]
[1741984074420,0.00492,84167.0,84166.0,0.006]
[1741984075940,0.00492,84166.0,84165.0,0.237628]
[1741984076822,0.00492,84166.0,84165.0,0.249509]
[1741984078006,0.00492,84166.0,84165.0,0.251509]
[1741984078407,0.00492,84166.0,84165.0,0.253509]
[1741984079837,0.00492,84166.0,84165.0,0.241628]
[1741984080470,0.00492,84166.0,84165.0,0.239628]
[1741984080893,0.00492,84166.0,84165.0,0.241628]
[1741984081340,0.00492,84166.0,84165.0,0.239628]
[1741984081684,0.04470698,84166.0,84165.0,0.004]
[1741984081887,0.42570698,84166.0,84165.0,0.004]
[1741984082088,0.02790598,84158.0,84157.0,0.2378176]
[1741984082766,0.03282598,84158.0,84157.0,0.0001696]
[1741984083244,0.03282598,84158.0,84157.0,0.0120516]
[1741984083685,0.03282598,84158.0,84157.0,0.0160516]
[1741984083915,0.00492,84163.0,84162.0,0.249517]
[1741984084803,0.03282598,84163.0,84162.0,0.249517]
[1741984085468,0.03282598,84163.0,84162.0,0.237636]
[1741984085698,0.00492,84163.0,84162.0,0.240636]
[1741984085914,0.03282598,84163.0,84162.0,0.240636]
[1741984086947,0.03282598,84163.0,84162.0,0.239636]
[1741984087173,0.03282598,84163.0,84162.0,0.242636]
[1741984087611,0.03282598,84163.0,84162.0,0.244636]
[1741984087866,0.03282598,84163.0,84162.0,0.253517]
[1741984088099,0.00492,84163.0,84162.0,0.256517]
[1741984088541,0.0003392,84165.0,84164.0,0.249512]
[1741984090116,0.0003392,84165.0,84164.0,0.251512]
[1741984090388,0.0003392,84165.0,84164.0,0.249512]
[1741984090619,0.0003392,84165.0,84164.0,0.251512]
[1741984091105,0.0003392,84165.0,84164.0,0.666112]
[1741984091359,0.0003392,84165.0,84164.0,0.669112]
[1741984091784,0.0003392,84165.0,84164.0,0.666112]
[1741984092014,0.0003392,84165.0,84164.0,0.664112]
[1741984092218,0.0003392,84165.0,84164.0,0.669112]
[1741984092439,0.0003392,84165.0,84164.0,0.667112]
[1741984092738,0.0003392,84165.0,84164.0,0.669112]
[1741984093228,0.0003392,84165.0,84164.0,0.667112]
[1741984093449,0.0003392,84165.0,84164.0,0.669112]
[1741984093653,0.0003392,84165.0,84164.0,0.664112]
[1741984093857,0.0003392,84165.0,84164.0,0.667112]
[1741984094058,0.0003392,84165.0,84164.0,0.69301862]
[1741984094464,0.0003392,84165.0,84164.0,0.69001862]
[1741984094670,0.0003392,84165.0,84164.0,0.69301862]
[1741984095267,0.0003392,84165.0,84164.0,0.68801862]
[1741984095478,0.0003392,84165.0,84164.0,0.69301862]
[1741984096001,0.0003392,84165.0,84164.0,0.673112]
[1741984096129,0.0052592,84165.0,84164.0,0.673112]
[1741984096333,0.0052592,84165.0,84164.0,0.671112]
[1741984096533,0.0052592,84165.0,84164.0,0.675112]
[1741984096741,0.0052592,84165.0,84164.0,0.672112]
[1741984096926,0.0052592,84165.0,84164.0,0.262512]
[1741984097352,0.0003392,84165.0,84164.0,0.262512]
[1741984097564,0.0003392,84165.0,84164.0,0.257512]
[1741984097768,0.0003392,84165.0,84164.0,0.261512]
[1741984098172,0.0052592,84165.0,84164.0,0.261512]
[1741984098402,0.0052592,84165.0,84164.0,0.253512]
[1741984098612,0.0052592,84165.0,84164.0,0.256512]
[1741984098826,0.0052592,84165.0,84164.0,0.252512]
[1741984099268,0.0052592,84165.0,84164.0,0.255512]
[1741984099747,0.0052592,84165.0,84164.0,0.249512]
[1741984099986,0.0052592,84165.0,84164.0,0.252512]
[1741984100197,0.0052592,84165.0,84164.0,0.249512]
[1741984100814,0.0052592,84165.0,84164.0,0.253512]
[1741984101224,0.0052592,84165.0,84164.0,0.249512]
[1741984101568,0.0052592,84165.0,84164.0,0.256512]
[1741984101814,0.0052592,84165.0,84164.0,0.253512]
[1741984102296,0.0003392,84165.0,84164.0,0.256512]
[1741984103039,0.0003392,84165.0,84164.0,0.671112]
[1741984110437,2e-07,84165.0,84164.0,0.671112]
[1741984110672,4e-07,84174.0,84173.0,0.249485]
[1741984110930,4e-07,84174.0,84173.0,0.41812007]
[1741984111163,4e-07,84174.0,84173.0,1.91812007]
[1741984111393,4e-07,84174.0,84173.0,2.33272007]
[1741984111599,4e-07,84174.0,84173.0,2.65481409]
[1741984111806,4e-07,84174.0,84173.0,2.65836329]
[1741984112210,4e-07,84174.0,84173.0,2.66436329]
[1741984113270,4e-07,84174.0,84173.0,2.65836329]
[1741984113672,4e-07,84174.0,84173.0,2.78972329]
[1741984114100,4e-07,84174.0,84173.0,2.77362927]
[1741984114327,4e-07,84174.0,84173.0,2.75858822]
[1741984114527,4e-07,84174.0,84173.0,2.75258822]
[1741984114744,4e-07,84174.0,84173.0,1.1482942]
[1741984114953,4e-07,84174.0,84173.0,1.1542942]
[1741984115168,4e-07,84174.0,84173.0,1.18238822]
[1741984115344,4e-07,84174.0,84173.0,2.68238822]
[1741984115559,4e-07,84174.0,84173.0,2.67038822]
[1741984116011,4e-07,84174.0,84173.0,2.67638822]
[1741984116224,4e-07,84174.0,84173.0,2.67038822]
[1741984116433,4e-07,84174.0,84173.0,2.6482942]
[1741984116663,4e-07,84174.0,84173.0,2.6542942]
[1741984116953,4e-07,84174.0,84173.0,2.6602942]
[1741984117331,4e-07,84174.0,84173.0,2.6542942]
[1741984117676,4e-07,84174.0,84173.0,2.6602942]
[1741984118086,4e-07,84174.0,84173.0,2.68238822]
[1741984118714,4e-07,84174.0,84173.0,2.76088822]
[1741984119140,4e-07,84174.0,84173.0,2.79190829]
[1741984119711,4e-07,84174.0,84173.0,2.79790829]
[1741984119931,4e-07,84174.0,84173.0,2.80644914]
[1741984120161,4e-07,84174.0,84173.0,2.81244914]
[1741984120368,0.03178638,84207.0,84206.0,0.249387]
[1741984120576,0.00492,84207.0,84206.0,0.249387]
[1741984120929,0.03178638,84207.0,84206.0,0.249387]
[1741984122386,0.077039,84208.0,84207.0,0.011875]
[1741984122599,0.02720538,84208.0,84207.0,0.011875]
[1741984122996,0.000339,84208.0,84207.0,0.011875]
[1741984123971,0.02720538,84208.0,84207.0,0.011875]
[1741984124200,0.000339,84208.0,84207.0,0.013875]
[1741984124586,0.000339,84208.0,84207.0,0.01406245]
[1741984124789,0.000339,84208.0,84207.0,0.012875]
[1741984124995,0.000339,84208.0,84207.0,0.014875]
[1741984125193,0.000339,84208.0,84207.0,1.516875]
[1741984126261,0.000339,84208.0,84207.0,1.514875]
[1741984126649,0.000339,84208.0,84207.0,1.517875]
[1741984127464,0.000339,84208.0,84207.0,1.519875]
[1741984127670,0.000339,84208.0,84207.0,1.513875]
[1741984128039,0.000339,84208.0,84207.0,1.522875]
[1741984128238,0.000339,84208.0,84207.0,0.022875]
[1741984128838,0.000339,84208.0,84207.0,0.016875]
[1741984129022,0.000339,84208.0,84207.0,0.022875]
[1741984129221,0.000339,84208.0,84207.0,0.160155]
[1741984129427,0.000339,84208.0,84207.0,0.155155]
[1741984130037,0.000339,84208.0,84207.0,0.161155]
[1741984130451,0.000339,84208.0,84207.0,0.155155]
[1741984130645,0.000339,84208.0,84207.0,0.153155]
[1741984131056,0.000339,84208.0,84207.0,0.158155]
[1741984132004,0.000339,84208.0,84207.0,0.154155]
[1741984132769,0.000339,84208.0,84207.0,0.149155]
[1741984132967,0.000339,84208.0,84207.0,0.156155]
[1741984133398,0.005259,84208.0,84207.0,0.14428]
[1741984133594,0.005259,84208.0,84207.0,0.14028]
[1741984133818,0.005259,84208.0,84207.0,0.007]
[1741984134256,0.005259,84208.0,84207.0,0.004]
[1741984134491,0.28117638,84205.0,84204.0,0.4146]
[1741984135091,0.00492,84196.0,84194.0,0.237544]
[1741984135294,0.0774,84195.0,84194.0,0.249421]
[1741984135495,0.10426638,84195.0,84194.0,0.249421]
[1741984136393,0.00492,84192.0,84191.0,0.24943]
[1741984136596,0.00492,84192.0,84191.0,0.237553]
[1741984136751,0.00492,84191.0,84190.0,0.249434]
[1741984138059,0.00492,84191.0,84190.0,0.237557]
[1741984138249,0.00492,84191.0,84190.0,0.249434]
[1741984138448,0.00492,84191.0,84190.0,0.255434]
[1741984138656,0.00492,84191.0,84190.0,0.248557]
[1741984139058,0.70601838,84191.0,84190.0,0.011]
[1741984139263,0.59824414,84189.0,84188.0,0.10652771]
[1741984139667,0.68014414,84189.0,84188.0,0.10652771]
[1741984140089,0.69468499,84189.0,84188.0,0.10652771]
[1741984140735,0.237552,84193.0,84192.0,2.80658301]
[1741984141169,0.249429,84193.0,84192.0,2.80658301]
[1741984141389,0.011875,84206.0,84197.0,0.237536]
[1741984141615,0.249394,84204.0,84195.0,0.237541]
[1741984141837,0.249394,84204.0,84196.0,0.237538]
[1741984142291,0.01166778,84205.0,84202.0,0.011876]
[1741984142523,0.50320357,84210.0,84201.0,0.237524]
[1741984142727,0.011875,84209.0,84202.0,0.237521]
[1741984142936,0.011875,84209.0,84202.0,0.236521]
[1741984143168,0.13728,84211.0,84202.0,0.236521]
[1741984143418,0.000339,84213.0,84207.0,0.237509]
[1741984143622,0.000339,84213.0,84206.0,0.23751]
[1741984143827,0.249395,84204.0,84197.0,0.237535]
[1741984144027,0.237531,84200.0,84194.0,0.236545]
[1741984144230,0.237531,84200.0,84192.0,3.04413301]
[1741984144231,0.249408,84199.0,84192.0,3.04413301]
[1741984144635,0.237538,84197.0,84192.0,2.80658301]
[1741984144848,0.011876,84198.0,84192.0,2.80658301]
[1741984145263,0.002,84200.0,84195.0,0.011877]
[1741984145898,0.002,84200.0,84199.0,0.011876]
[1741984146988,0.002,84200.0,84199.0,0.010876]
[1741984147219,0.26570157,84202.0,84200.0,0.237529]
[1741984147426,0.3,84205.0,84201.0,0.237524]
[1741984147626,0.3,84205.0,84200.0,0.249405]
[1741984147823,0.000339,84208.0,84203.0,0.011876]
[1741984148022,0.000339,84208.0,84207.0,0.249384]
[1741984148674,0.000339,84208.0,84207.0,0.248384]
[1741984148934,0.000339,84208.0,84207.0,0.247384]
[1741984150374,0.000339,84208.0,84207.0,0.249384]
[1741984150569,0.002339,84208.0,84207.0,0.249384]
[1741984150798,0.000339,84208.0,84207.0,0.247384]
[1741984151250,0.000339,84208.0,84207.0,0.252384]
[1741984151592,0.000339,84208.0,84207.0,0.251384]
[1741984151940,0.000339,84208.0,84207.0,0.247384]
[1741984152072,0.000339,84208.0,84207.0,0.250384]
[1741984152313,0.000339,84208.0,84207.0,0.252384]
[1741984153562,0.000339,84208.0,84207.0,0.249384]
[1741984153993,0.000339,84208.0,84207.0,0.247384]
[1741984154374,0.000339,84208.0,84207.0,0.250384]
[1741984154969,0.000339,84208.0,84207.0,0.249384]
[1741984155168,0.000339,84208.0,84207.0,0.252384]
[1741984163099,0.004566,84208.0,84207.0,0.252384]
[1741984163301,0.004566,84208.0,84207.0,0.744584]
[1741984163504,1e-06,84208.0,84207.0,0.791784]
[1741984163923,1e-06,84208.0,84207.0,2.291784]
[1741984164117,0.0002984,84225.0,84224.0,0.249335]
[1741984164241,0.0002984,84225.0,84224.0,0.386575]
[1741984165062,4e-07,84225.0,84224.0,0.386575]
[1741984165277,4e-07,84225.0,84224.0,0.922975]
[1741984165931,4e-07,84225.0,84224.0,2.422975]
[1741984166302,0.02333333,84240.0,84228.0,0.249322]
[1741984167471,0.2890349,84240.0,84228.0,0.255322]
[1741984168136,0.02333333,84240.0,84228.0,0.255322]
[1741984169245,0.02333333,84240.0,84228.0,0.260322]
[1741984169847,0.02333333,84240.0,84228.0,0.254322]
[1741984170056,0.02333333,84240.0,84228.0,0.260322]
[1741984172107,0.001139,84229.0,84228.0,0.813122]
[1741984172313,0.24911886,84255.0,84252.0,2.21865511]
[1741984172537,0.249251,84253.0,84252.0,2.21865511]
[1741984177921,0.249251,84253.0,84252.0,2.21731511]
[1741984178132,0.3,84257.0,84254.0,0.237377]
[1741984178355,0.0736344,84262.0,84256.0,0.237371]
[1741984178571,0.3,84261.0,84257.0,0.237366]
[1741984178822,0.3,84261.0,84254.0,0.011868]
[1741984178823,0.3156022,84259.0,84254.0,0.237377]
[1741984179036,0.237368,84258.0,84254.0,0.237377]
[1741984179243,0.0782392,84259.0,84257.0,0.011868]
[1741984179454,0.0003392,84259.0,84257.0,0.248235]
[1741984179660,0.0003392,84259.0,84258.0,0.011868]
[1741984179876,0.0003392,84259.0,84258.0,1.511868]
[1741984180083,0.0003392,84259.0,84258.0,0.011868]
[1741984180296,0.0003392,84259.0,84258.0,0.010868]
[1741984180508,0.0003392,84259.0,84258.0,0.57541635]
[1741984180723,0.0003392,84259.0,84258.0,0.57422968]
[1741984180942,0.0003392,84259.0,84258.0,0.562628]
[1741984181176,0.0012992,84259.0,84258.0,0.562628]
[1741984181389,0.0002992,84259.0,84258.0,0.562628]
[1741984181597,0.0002992,84259.0,84258.0,0.568628]
[1741984182233,0.0002992,84259.0,84258.0,0.56076]
[1741984182459,0.0002992,84259.0,84258.0,0.572628]
[1741984182875,0.0002992,84259.0,84258.0,0.55776]
[1741984183081,0.0002992,84259.0,84258.0,0.56376]
[1741984183321,0.0002992,84259.0,84258.0,0.012]
[1741984183542,0.0121672,84259.0,84258.0,0.006]
[1741984184007,0.0121672,84259.0,84258.0,0.011]
[1741984184209,0.3121672,84259.0,84258.0,0.011]
[1741984184418,0.3121672,84259.0,84258.0,0.005]
[1741984184627,0.3121672,84259.0,84258.0,0.009]
[1741984184797,0.3121672,84259.0,84258.0,0.005]
[1741984185243,0.011869,84253.0,84252.0,2.20731511]
[1741984185450,0.549249,84253.0,84252.0,2.20731511]
[1741984186649,0.549249,84253.0,84252.0,2.20831511]
[1741984187625,0.628649,84253.0,84252.0,2.20831511]
[1741984188469,0.628649,84253.0,84252.0,2.20731511]
[1741984188825,0.628649,84253.0,84252.0,2.20831511]
[1741984189250,0.628649,84253.0,84252.0,2.20731511]
[1741984189619,0.629649,84253.0,84252.0,2.20731511]
[1741984191718,0.550249,84253.0,84252.0,2.20731511]
[1741984191941,0.001,84253.0,84252.0,2.21918411]
[1741984192368,0.001,84253.0,84252.0,2.45656711]
[1741984192547,0.001,84253.0,84252.0,3.94469811]
[1741984192832,0.001,84253.0,84252.0,3.70731511]
[1741984193256,0.001,84253.0,84252.0,3.94469811]
[1741984193464,0.001,84253.0,84252.0,3.70731511]
[1741984193671,0.001,84253.0,84252.0,3.95656711]